[Event "22nd Ruzomberok Open 2019"]
[Site "Ruzomberok"]
[Date "2019.07.07"]
[Round "9.25"]
[White "Kapicakova, Lucia"]
[Black "Zilkay, Dominik"]
[Result "0-1"]
[ECO "A08"]
[WhiteElo "1671"]
[BlackElo "1328"]
[Annotator "NA"]
[PlyCount "138"]
[EventDate "2019.06.29"]
[EventType "swiss"]
[EventCountry "SVK"]
[SourceTitle "playchess.com"]
[Source "ChessBase"]
[SourceQuality "1"]
[TimeControl "40/5400+30:1800+30"]

1. Nf3 {[%emt 0:00:00]} d5 {[%emt 0:05:06]} 2. g3 {[%emt 0:00:00]} c5 {[%emt 0:00:05]} 3. Bg2 {[%emt 0:00:00]} Nc6 {[%emt 0:00:03]} 4. d3 {[%emt 0:00:00]} e5 {[%emt 0:00:07]} 5. O-O {[%emt 0:00:10]} f6 {[%emt 0:00:09]} 6. c3 {[%emt 0:01:20]} Be6 {[%emt 0:00:13]} 7. a3 {[%emt 0:00:50]} Qd7 {[%emt 0:01:42]} 8. Nbd2 {[%emt 0:02:11]} Nge7 {[%emt 0:00:20]} 9. e4 {[%emt 0:03:03]} d4 {[%emt 0:05:33]} 10. c4 {[%emt 0:04:36]} h5 {[%emt 0:05:23]} 11. Qa4 {[%emt 0:13:18]} Nc8 {[%emt 0:01:02]} 12. Nh4 {[%emt 0:18:30]} g5 {[%emt 0:10:55]} 13. Ng6 {[%emt 0:04:41]} Rg8 {[%emt 0:04:38]} 14. Nxf8 {[%emt 0:00:24]} Rxf8 {[%emt 0:00:01]} 15. Nf3 {[%emt 0:02:25]} Bh3 {[%emt 0:01:02]} 16. Bd2 {[%emt 0:04:46]} Bxg2 {[%emt 0:00:45]} 17. Kxg2 {[%emt 0:00:09]} h4 {[%emt 0:00:26]} 18. Rh1 {[%emt 0:06:10]} Qg4 {[%emt 0:01:02]} 19. h3 {[%emt 0:04:05]} Qh5 {[%emt 0:00:33]} 20. g4 {[%emt 0:01:08]} Qh7 {[%emt 0:00:12]} 21. Ne1 {[%emt 0:11:38]} Qd7 {[%emt 0:01:38]} 22. Nc2 {[%emt 0:01:40]} Nd8 {[%emt 0:00:48]} 23. Qxd7+ {[%emt 0:02:05]} Kxd7 {[%emt 0:00:02]} 24. b4 {[%emt 0:03:08]} b6 {[%emt 0:00:05]} 25. Rhb1 {[%emt 0:08:58]} Ne6 {[%emt 0:00:17]} 26. Rb2 {[%emt 0:01:22]} Ne7 {[%emt 0:00:16]} 27. b5 {[%emt 0:01:24]} a6 {[%emt 0:02:23]} 28. a4 {[%emt 0:03:13]} Ng6 {[%emt 0:02:08]} 29. Ne1 {[%emt 0:01:04]} Ngf4+ {[%emt 0:01:12]} 30. Bxf4 {[%emt 0:00:49]} Nxf4+ {[%emt 0:00:03]} 31. Kh2 {[%emt 0:00:18]} axb5 {[%emt 0:01:21]} 32. Rxb5 {[%emt 0:01:23]} Ra6 {[%emt 0:01:17]} 33. Rab1 {[%emt 0:00:41]} Kc7 {[%emt 0:00:07]} 34. R5b3 {[%emt 0:00:36]} Rb8 {[%emt 0:00:33]} 35. Ra1 {[%emt 0:00:33]} Ne2 {[%emt 0:00:40]} 36. Rba3 {[%emt 0:00:48]} Rba8 {[%emt 0:00:23]} 37. Nc2 {[%emt 0:00:30]} Nc3 {[%emt 0:00:13]} 38. Rb3 {[%emt 0:00:31]} Rxa4 {[%emt 0:00:10]} 39. Na3 {[%emt 0:00:28]} Kc6 {[%emt 0:01:13]} 40. Kg2 {[%emt 0:00:29]} Rb4 {[%emt 0:01:28]} 41. Nc2 {[%emt 0:07:36]} Rxa1 {[%emt 0:01:58]} 42. Nxa1 {[%emt 0:00:33]} Rxb3 {[%emt 0:00:12]} 43. Nxb3 {[%emt 0:00:04]} b5 {[%emt 0:00:27]} 44. Nd2 {[%emt 0:07:18]} b4 {[%emt 0:00:46]} 45. Kf1 {[%emt 0:02:13]} Na4 {[%emt 0:00:50]} 46. Nb3 {[%emt 0:01:18]} Nb6 {[%emt 0:00:14]} 47. Na5+ {[%emt 0:02:24]} Kc7 {[%emt 0:00:25]} 48. Ke2 {[%emt 0:01:16]} Nd7 {[%emt 0:00:13]} 49. Kf3 {[%emt 0:07:13]} Nf8 {[%emt 0:00:41]} 50. Nb3 {[%emt 0:02:40]} Ne6 {[%emt 0:02:03]} 51. Nd2 {[%emt 0:02:53]} Kb6 {[%emt 0:02:03]} 52. Nb3 {[%emt 0:00:29]} Ka6 {[%emt 0:00:41]} 53. Ke2 {[%emt 0:00:36]} Nf4+ {[%emt 0:00:24]} 54. Kf3 {[%emt 0:00:27]} Nxd3 {[%emt 0:00:26]} 55. Ke2 {[%emt 0:00:19]} Nf4+ {[%emt 0:00:32]} 56. Kf3 {[%emt 0:00:18]} Ne6 {[%emt 0:00:17]} 57. Ke2 {[%emt 0:00:40]} Kb7 {[%emt 0:00:33]} 58. Na5+ {[%emt 0:00:34]} Kb6 {[%emt 0:00:18]} 59. Nb3 {[%emt 0:00:07]} Nf4+ {[%emt 0:00:11]} 60. Kf3 {[%emt 0:00:49]} Nxh3 {[%emt 0:00:12]} 61. Kg2 {[%emt 0:00:40]} Nf4+ {[%emt 0:00:22]} 62. Kf3 {[%emt 0:00:14]} Nd3 {[%emt 0:00:03]} 63. Nd2 {[%emt 0:00:53]} Ka5 {[%emt 0:00:26]} 64. Ke2 {[%emt 0:00:25]} Nf4+ {[%emt 0:00:37]} 65. Kf3 {[%emt 0:00:19]} Ka4 {[%emt 0:00:25]} 66. Nb3 {[%emt 0:00:20]} Ne6 {[%emt 0:00:17]} 67. Nd2 {[%emt 0:00:47]} b3 {[%emt 0:00:10]} 68. Ke2 {[%emt 0:00:36]} Ka3 {[%emt 0:00:23]} 69. Kd1 {[%emt 0:00:33]} h3 {[%emt 0:00:23]} 0-1

[Event "22nd Ruzomberok Open 2019"]
[Site "Ruzomberok"]
[Date "2019.07.07"]
[Round "9.26"]
[White "Mikulec, Martin"]
[Black "Majerova, Veronika"]
[Result "1-0"]
[ECO "B00"]
[WhiteElo "1870"]
[BlackElo "1531"]
[Annotator "NA"]
[PlyCount "57"]
[EventDate "2019.06.29"]
[EventType "swiss"]
[EventCountry "SVK"]
[SourceTitle "playchess.com"]
[Source "ChessBase"]
[SourceQuality "1"]
[TimeControl "40/5400+30:1800+30"]

1. e4 d6 2. d4 g6 3. Nf3 Bg7 4. Bc4 Nf6 5. Nc3 O-O 6. O-O e5 7. dxe5 dxe5 8. Qxd8 Rxd8 9. Bg5 Re8 10. Bxf6 Bxf6 11. Nd5 Bd8 12. Ne3 c6 13. Rad1 Nd7 14. Ng4 Kg7 15. Ngxe5 Nxe5 16. Nxe5 Rxe5 17. Rxd8 Rxe4 18. Bb3 a5 19. a4 Re7 20. Rfd1 b5 21. f3 Bb7 22. R1d7 Rxd8 23. Rxe7 Ba6 24. Rxf7+ Kh6 25. Ra7 Bc8 26. Rxa5 Bd7 27. axb5 cxb5 28. Ra7 Bc8 29. Rc7 1-0

[Event "22nd Ruzomberok Open 2019"]
[Site "Ruzomberok"]
[Date "2019.07.07"]
[Round "9.27"]
[White "Taragel, Marian"]
[Black "Profant, Jan"]
[Result "0-1"]
[ECO "B35"]
[WhiteElo "1636"]
[BlackElo "1879"]
[Annotator "NA"]
[PlyCount "136"]
[EventDate "2019.06.29"]
[EventType "swiss"]
[EventCountry "SVK"]
[SourceTitle "playchess.com"]
[Source "ChessBase"]
[SourceQuality "1"]
[TimeControl "40/5400+30:1800+30"]

1. e4 {[%emt 0:00:00]} c5 {[%emt 0:00:00]} 2. Nf3 {[%emt 0:01:03]} g6 {[%emt 0:00:00]} 3. d4 {[%emt 0:00:59]} cxd4 {[%emt 0:00:00]} 4. Nxd4 {[%emt 0:00:27]} Nc6 {[%emt 0:00:00]} 5. Nc3 {[%emt 0:01:24]} Bg7 {[%emt 0:00:00]} 6. Be3 {[%emt 0:00:59]} Nf6 {[%emt 0:00:02]} 7. Bc4 {[%emt 0:00:47]} O-O {[%emt 0:00:06]} 8. Bb3 {[%emt 0:00:31]} Qa5 {[%emt 0:00:42]} 9. f3 {[%emt 0:01:25]} d5 {[%emt 0:00:53]} 10. exd5 {[%emt 0:06:21]} Nb4 {[%emt 0:00:05]} 11. O-O {[%emt 0:03:56]} Nbxd5 {[%emt 0:00:29]} 12. Nxd5 {[%emt 0:03:21]} Nxd5 {[%emt 0:00:08]} 13. Bf2 {[%emt 0:02:59]} e5 {[%emt 0:02:54]} 14. Ne2 {[%emt 0:04:56]} Be6 {[%emt 0:00:19]} 15. Bxd5 {[%emt 0:05:49]} Bxd5 {[%emt 0:00:41]} 16. Nc3 {[%emt 0:04:43]} Bc4 {[%emt 0:00:40]} 17. Re1 {[%emt 0:01:06]} Rfd8 {[%emt 0:00:32]} 18. Qc1 {[%emt 0:00:33]} Rd7 19. Qe3 {[%emt 0:05:01]} Qb4 {[%emt 0:10:24]} 20. Qc5 {[%emt 0:04:41]} Qxc5 {[%emt 0:01:06]} 21. Bxc5 {[%emt 0:00:11]} b6 {[%emt 0:02:09]} 22. Bf2 {[%emt 0:00:52]} Rd2 {[%emt 0:00:54]} 23. Rac1 {[%emt 0:01:45]} f5 {[%emt 0:01:24]} 24. Be3 {[%emt 0:02:59]} Rd7 {[%emt 0:01:40]} 25. Rcd1 {[%emt 0:01:48]} Rad8 {[%emt 0:00:15]} 26. a3 {[%emt 0:02:14]} Kf7 {[%emt 0:10:44]} 27. Bg5 {[%emt 0:02:51]} Rxd1 {[%emt 0:01:06]} 28. Rxd1 {[%emt 0:00:11]} Rxd1+ {[%emt 0:00:46]} 29. Nxd1 {[%emt 0:00:08]} f4 {[%emt 0:00:43]} 30. b3 {[%emt 0:06:24]} Ba6 {[%emt 0:01:31]} 31. Bh4 {[%emt 0:03:43]} Bf8 {[%emt 0:00:32]} 32. a4 {[%emt 0:00:32]} Ke6 {[%emt 0:00:40]} 33. Nc3 {[%emt 0:02:26]} Bb7 {[%emt 0:02:53]} 34. Bf2 {[%emt 0:01:17]} Bb4 {[%emt 0:01:23]} 35. Na2 {[%emt 0:03:45]} Bc5 {[%emt 0:03:44]} 36. Bxc5 {[%emt 0:01:32]} bxc5 {[%emt 0:00:01]} 37. Kf2 {[%emt 0:03:03]} e4 {[%emt 0:01:00]} 38. fxe4 {[%emt 0:00:51]} Bxe4 {[%emt 0:00:05]} 39. c3 {[%emt 0:00:54]} Bc2 {[%emt 0:00:30]} 40. Nc1 {[%emt 0:02:26]} Ke5 {[%emt 0:00:13]} 41. Kf3 {[%emt 0:32:25]} Bd1+ {[%emt 0:30:25]} 42. Kf2 {[%emt 0:00:26]} Ke4 {[%emt 0:00:02]} 43. a5 {[%emt 0:01:17]} g5 {[%emt 0:04:06]} 44. b4 {[%emt 0:01:41]} cxb4 {[%emt 0:00:36]} 45. cxb4 {[%emt 0:00:18]} Ba4 {[%emt 0:00:18]} 46. Ne2 {[%emt 0:02:09]} Kd3 {[%emt 0:00:19]} 47. g3 {[%emt 0:04:57]} fxg3+ {[%emt 0:01:26]} 48. Nxg3 {[%emt 0:00:30]} Kc4 {[%emt 0:00:09]} 49. Ne4 {[%emt 0:00:37]} h6 {[%emt 0:01:46]} 50. Nd6+ {[%emt 0:06:25]} Kxb4 {[%emt 0:00:04]} 51. a6 {[%emt 0:00:36]} Ka5 {[%emt 0:04:45]} 52. Nc8 {[%emt 0:01:20]} Kxa6 {[%emt 0:00:04]} 53. Nxa7 {[%emt 0:00:15]} Kxa7 {[%emt 0:00:05]} 54. Kg3 {[%emt 0:00:22]} Bd1 {[%emt 0:00:18]} 55. h4 {[%emt 0:00:52]} g4 {[%emt 0:00:16]} 56. Kf4 {[%emt 0:01:04]} Kb6 {[%emt 0:00:01]} 57. Ke3 {[%emt 0:00:21]} Kc5 {[%emt 0:00:13]} 58. Kd2 {[%emt 0:00:31]} g3 {[%emt 0:02:09]} 59. Ke1 {[%emt 0:01:32]} Kd4 {[%emt 0:00:07]} 60. Kf1 {[%emt 0:00:38]} Ke3 {[%emt 0:00:27]} 61. Kg2 {[%emt 0:00:15]} Kf4 {[%emt 0:00:03]} 62. Kg1 {[%emt 0:00:00]} Kg4 {[%emt 0:00:00]} 63. h5 {[%emt 0:00:00]} Kxh5 {[%emt 0:00:00]} 64. Kh1 {[%emt 0:00:00]} Kg4 {[%emt 0:00:00]} 65. Kg2 {[%emt 0:00:00]} Bf3+ {[%emt 0:00:00]} 66. Kg1 {[%emt 0:00:00]} h5 {[%emt 0:00:00]} 67. Kf1 {[%emt 0:00:00]} h4 {[%emt 0:00:00]} 68. Kg1 {[%emt 0:00:00]} h3 {[%emt 0:00:00]} 0-1

[Event "22nd Ruzomberok Open 2019"]
[Site "Ruzomberok"]
[Date "2019.07.07"]
[Round "9.28"]
[White "Horbal, Jozef"]
[Black "Petrasko, Jozef"]
[Result "1-0"]
[ECO "D70"]
[WhiteElo "1712"]
[BlackElo "1455"]
[Annotator "NA"]
[PlyCount "99"]
[EventDate "2019.06.29"]
[EventType "swiss"]
[EventCountry "SVK"]
[SourceTitle "playchess.com"]
[Source "ChessBase"]
[SourceQuality "1"]
[TimeControl "40/5400+30:1800+30"]

1. d4 {[%emt 0:01:07]} Nf6 {[%emt 0:00:00]} 2. c4 {[%emt 0:00:20]} g6 {[%emt 0:00:00]} 3. Nf3 {[%emt 0:00:09]} Bg7 {[%emt 0:00:09]} 4. Nc3 {[%emt 0:00:13]} d6 {[%emt 0:00:22]} 5. e4 {[%emt 0:00:11]} Nbd7 {[%emt 0:01:39]} 6. Be2 {[%emt 0:00:24]} O-O {[%emt 0:00:08]} 7. O-O {[%emt 0:02:28]} e5 {[%emt 0:01:33]} 8. d5 {[%emt 0:00:19]} Nc5 {[%emt 0:01:05]} 9. Qc2 {[%emt 0:00:50]} Ne8 {[%emt 0:01:19]} 10. Be3 {[%emt 0:01:26]} Na6 {[%emt 0:02:34]} 11. a3 {[%emt 0:01:22]} f5 {[%emt 0:00:26]} 12. Bg5 {[%emt 0:04:04]} Nf6 {[%emt 0:00:49]} 13. exf5 {[%emt 0:00:54]} Bxf5 {[%emt 0:00:20]} 14. Bd3 {[%emt 0:00:58]} h6 {[%emt 0:00:26]} 15. Bxf5 {[%emt 0:02:02]} gxf5 {[%emt 0:00:50]} 16. Bh4 {[%emt 0:00:47]} Qd7 {[%emt 0:03:59]} 17. Nd2 {[%emt 0:06:54]} Rae8 {[%emt 0:10:16]} 18. f3 {[%emt 0:01:12]} c6 {[%emt 0:01:48]} 19. dxc6 {[%emt 0:01:09]} bxc6 {[%emt 0:00:20]} 20. Rad1 {[%emt 0:00:24]} d5 {[%emt 0:02:16]} 21. Bxf6 {[%emt 0:05:55]} Bxf6 {[%emt 0:02:18]} 22. cxd5 {[%emt 0:00:12]} cxd5 {[%emt 0:00:26]} 23. Qd3 {[%emt 0:00:18]} Nc5 {[%emt 0:00:16]} 24. Qxd5+ {[%emt 0:00:30]} Qxd5 {[%emt 0:01:31]} 25. Nxd5 {[%emt 0:00:13]} Bg5 {[%emt 0:00:53]} 26. Nc4 {[%emt 0:01:48]} e4 {[%emt 0:02:43]} 27. fxe4 {[%emt 0:02:24]} Nxe4 {[%emt 0:00:05]} 28. g3 {[%emt 0:01:37]} Nf6 {[%emt 0:02:49]} 29. Rxf5 {[%emt 0:01:28]} Nxd5 {[%emt 0:00:26]} 30. Rxf8+ {[%emt 0:01:12]} Kxf8 {[%emt 0:00:47]} 31. Rxd5 {[%emt 0:00:20]} Rb8 {[%emt 0:01:38]} 32. Kf2 {[%emt 0:00:49]} Bf6 {[%emt 0:00:22]} 33. b4 {[%emt 0:00:44]} Rc8 {[%emt 0:00:30]} 34. Rf5 {[%emt 0:04:14]} Ke7 {[%emt 0:00:35]} 35. Rf4 {[%emt 0:01:03]} Bg5 {[%emt 0:00:32]} 36. Re4+ {[%emt 0:00:17]} Kf6 {[%emt 0:00:37]} 37. Ke2 {[%emt 0:03:17]} Rc6 {[%emt 0:01:47]} 38. h4 {[%emt 0:00:43]} Bc1 {[%emt 0:01:14]} 39. Kd1 {[%emt 0:00:38]} Bxa3 {[%emt 0:00:48]} 40. Nxa3 {[%emt 0:00:19]} Rc3 {[%emt 0:00:09]} 41. Nb5 {[%emt 0:30:31]} Rxg3 {[%emt 0:30:25]} 42. Nxa7 {[%emt 0:00:09]} Kf5 {[%emt 0:00:17]} 43. Rc4 {[%emt 0:00:15]} h5 {[%emt 0:00:10]} 44. Kc2 {[%emt 0:00:33]} Rg4 {[%emt 0:00:20]} 45. Rxg4 {[%emt 0:02:21]} hxg4 {[%emt 0:00:15]} 46. Kd2 {[%emt 0:00:11]} g3 {[%emt 0:02:20]} 47. Ke2 {[%emt 0:00:08]} Kg4 {[%emt 0:00:10]} 48. Kf1 Kxh4 {[%emt 0:00:36]} 49. Kg2 {[%emt 0:00:25]} Kg5 {[%emt 0:00:18]} 50. b5 {[%emt 0:00:20]} 1-0

[Event "22nd Ruzomberok Open 2019"]
[Site "Ruzomberok"]
[Date "2019.07.07"]
[Round "9.29"]
[White "Gasper, Jaroslav"]
[Black "Verba, Vladimir"]
[Result "0-1"]
[ECO "C31"]
[WhiteElo "1772"]
[BlackElo "1709"]
[Annotator "NA"]
[PlyCount "44"]
[EventDate "2019.06.29"]
[EventType "swiss"]
[EventCountry "SVK"]
[SourceTitle "playchess.com"]
[Source "ChessBase"]
[SourceQuality "1"]
[TimeControl "40/5400+30:1800+30"]

1. e4 {[%emt 0:10:01]} e5 {[%emt 0:00:21]} 2. f4 {[%emt 0:00:08]} d5 {[%emt 0:00:17]} 3. exd5 {[%emt 0:00:12]} c6 {[%emt 0:00:09]} 4. dxc6 {[%emt 0:01:06]} Nxc6 {[%emt 0:00:47]} 5. d3 {[%emt 0:00:18]} Bc5 {[%emt 0:03:40]} 6. Nf3 {[%emt 0:00:44]} Bg4 {[%emt 0:01:59]} 7. Be2 {[%emt 0:00:10]} f6 {[%emt 0:11:49]} 8. Nxe5 {[%emt 0:00:05]} fxe5 {[%emt 0:10:17]} 9. Bxg4 {[%emt 0:00:10]} Nh6 {[%emt 0:01:51]} 10. Bf3 {[%emt 0:00:18]} O-O {[%emt 0:02:41]} 11. fxe5 {[%emt 0:01:30]} Qd4 {[%emt 0:03:15]} 12. Qe2 {[%emt 0:00:15]} Rae8 {[%emt 0:00:26]} 13. c3 {[%emt 0:00:05]} Qh4+ {[%emt 0:01:10]} 14. g3 {[%emt 0:00:01]} Qh3 {[%emt 0:06:17]} 15. d4 {[%emt 0:00:13]} Bxd4 {[%emt 0:02:27]} 16. cxd4 {[%emt 0:00:01]} Rxf3 {[%emt 0:02:30]} 17. Qxf3 {[%emt 0:00:24]} Kh8 {[%emt 0:01:37]} 18. Be3 {[%emt 0:00:32]} Nf5 {[%emt 0:01:02]} 19. Rf1 {[%emt 0:00:11]} g6 {[%emt 0:00:56]} 20. g4 {[%emt 0:00:26]} Qh4+ {[%emt 0:02:57]} 21. Bf2 Nxe5 22. Bxh4 Nxf3+ 0-1

[Event "22nd Ruzomberok Open 2019"]
[Site "Ruzomberok"]
[Date "2019.07.07"]
[Round "9.31"]
[White "Horbal, Michal"]
[Black "Malinovsky, Jozef"]
[Result "0-1"]
[ECO "B20"]
[WhiteElo "1111"]
[BlackElo "1734"]
[Annotator "NA"]
[PlyCount "58"]
[EventDate "2019.06.29"]
[EventType "swiss"]
[EventCountry "SVK"]
[SourceTitle "playchess.com"]
[Source "ChessBase"]
[SourceQuality "1"]
[TimeControl "40/5400+30:1800+30"]

1. e4 {[%emt 0:01:33]} c5 {[%emt 0:00:00]} 2. Bc4 {[%emt 0:01:13]} e6 {[%emt 0:00:23]} 3. Nf3 {[%emt 0:00:52]} Nc6 {[%emt 0:01:34]} 4. e5 {[%emt 0:02:44]} Nge7 {[%emt 0:05:30]} 5. O-O {[%emt 0:01:07]} Ng6 {[%emt 0:00:43]} 6. Re1 {[%emt 0:02:35]} Qc7 {[%emt 0:02:08]} 7. d4 {[%emt 0:01:25]} cxd4 {[%emt 0:00:26]} 8. Nxd4 {[%emt 0:00:24]} Nxd4 {[%emt 0:01:11]} 9. Qxd4 {[%emt 0:01:06]} Bc5 {[%emt 0:00:21]} 10. Qe4 {[%emt 0:01:27]} Qc6 {[%emt 0:01:40]} 11. Qxc6 {[%emt 0:04:37]} bxc6 {[%emt 0:00:35]} 12. Nc3 {[%emt 0:06:44]} Bd4 {[%emt 0:00:47]} 13. Bd3 {[%emt 0:03:32]} Nxe5 {[%emt 0:00:50]} 14. Ne2 {[%emt 0:04:36]} Nxd3 {[%emt 0:00:24]} 15. cxd3 {[%emt 0:00:20]} Bf6 {[%emt 0:01:20]} 16. a4 {[%emt 0:00:50]} Rb8 {[%emt 0:03:27]} 17. Ra2 {[%emt 0:02:16]} Ba6 {[%emt 0:01:19]} 18. Rd1 {[%emt 0:00:56]} O-O {[%emt 0:00:59]} 19. Nc3 {[%emt 0:00:57]} d5 {[%emt 0:00:39]} 20. d4 {[%emt 0:01:48]} Bc4 {[%emt 0:00:59]} 21. Ra1 {[%emt 0:05:44]} Bb3 {[%emt 0:01:54]} 22. Rd3 {[%emt 0:02:01]} Bc4 {[%emt 0:00:09]} 23. Rd1 {[%emt 0:14:12]} Rb3 {[%emt 0:00:56]} 24. a5 {[%emt 0:00:56]} Rb4 {[%emt 0:02:14]} 25. Ra4 {[%emt 0:01:46]} Rxa4 {[%emt 0:00:43]} 26. Nxa4 {[%emt 0:00:17]} Bb3 {[%emt 0:00:02]} 27. Rd3 {[%emt 0:00:49]} Bxa4 {[%emt 0:00:06]} 28. b3 {[%emt 0:01:44]} Bb5 {[%emt 0:00:02]} 29. Ba3 {[%emt 0:00:26]} Bxd3 {[%emt 0:00:10]} 0-1

[Event "22nd Ruzomberok Open 2019"]
[Site "Ruzomberok"]
[Date "2019.07.07"]
[Round "9.32"]
[White "Staffen, Robert"]
[Black "Hajtmansky, Milan"]
[Result "1-0"]
[ECO "C41"]
[WhiteElo "1643"]
[BlackElo "1521"]
[Annotator "NA"]
[PlyCount "45"]
[EventDate "2019.06.29"]
[EventType "swiss"]
[EventCountry "SVK"]
[SourceTitle "playchess.com"]
[Source "ChessBase"]
[SourceQuality "1"]
[TimeControl "40/5400+30:1800+30"]

1. e4 {[%emt 0:00:00]} e5 {[%emt 0:04:47]} 2. Nf3 {[%emt 0:00:00]} d6 {[%emt 0:00:36]} 3. d4 {[%emt 0:00:00]} exd4 {[%emt 0:00:25]} 4. Nxd4 {[%emt 0:00:00]} Be7 {[%emt 0:01:29]} 5. Nc3 {[%emt 0:00:22]} Nf6 {[%emt 0:01:32]} 6. Bc4 {[%emt 0:00:28]} O-O {[%emt 0:01:34]} 7. h3 {[%emt 0:00:12]} c5 {[%emt 0:02:23]} 8. Nf3 {[%emt 0:01:32]} a6 {[%emt 0:03:34]} 9. a4 {[%emt 0:00:10]} Nc6 {[%emt 0:01:38]} 10. Be3 {[%emt 0:01:05]} Rb8 {[%emt 0:01:14]} 11. O-O {[%emt 0:00:43]} Bd7 {[%emt 0:04:42]} 12. Qe2 {[%emt 0:04:43]} Be8 {[%emt 0:09:18]} 13. Rfd1 {[%emt 0:03:36]} Qc7 {[%emt 0:02:47]} 14. Rd2 {[%emt 0:02:55]} Rd8 {[%emt 0:08:25]} 15. Rad1 {[%emt 0:00:45]} Qb8 {[%emt 0:02:59]} 16. Bf4 {[%emt 0:05:04]} Kh8 {[%emt 0:06:59]} 17. e5 {[%emt 0:05:29]} Nh5 {[%emt 0:04:56]} 18. Bh2 {[%emt 0:00:24]} Qc8 {[%emt 0:05:46]} 19. Nd5 {[%emt 0:11:02]} dxe5 20. Nxe5 Nxe5 {[%emt 0:14:55]} 21. Qxe5 {[%emt 0:02:18]} Nf6 22. Qe1 Nh5 23. Qe2 1-0

[Event "22nd Ruzomberok Open 2019"]
[Site "Ruzomberok"]
[Date "2019.07.07"]
[Round "9.33"]
[White "Cebo, Vladimir"]
[Black "Demko, Ladislav"]
[Result "0-1"]
[ECO "A22"]
[WhiteElo "1577"]
[BlackElo "1666"]
[Annotator "NA"]
[PlyCount "118"]
[EventDate "2019.06.29"]
[EventType "swiss"]
[EventCountry "SVK"]
[SourceTitle "playchess.com"]
[Source "ChessBase"]
[SourceQuality "1"]
[TimeControl "40/5400+30:1800+30"]

1. c4 {[%emt 0:00:00]} e5 {[%emt 0:00:00]} 2. Nc3 {[%emt 0:00:00]} Nf6 {[%emt 0:00:00]} 3. e4 {[%emt 0:00:00]} b6 {[%emt 0:00:29]} 4. Nf3 {[%emt 0:00:18]} d6 {[%emt 0:00:24]} 5. h3 {[%emt 0:00:40]} Bb7 {[%emt 0:01:06]} 6. d3 {[%emt 0:05:21]} Be7 {[%emt 0:03:55]} 7. Be2 {[%emt 0:00:56]} O-O {[%emt 0:00:13]} 8. O-O {[%emt 0:00:08]} Nbd7 {[%emt 0:00:27]} 9. Be3 {[%emt 0:00:42]} a5 {[%emt 0:00:09]} 10. Qc2 {[%emt 0:00:54]} c6 {[%emt 0:03:43]} 11. d4 {[%emt 0:01:22]} exd4 {[%emt 0:01:07]} 12. Nxd4 {[%emt 0:01:03]} Re8 {[%emt 0:00:48]} 13. Rad1 {[%emt 0:01:14]} g6 {[%emt 0:00:20]} 14. Nf3 {[%emt 0:01:24]} Bf8 {[%emt 0:00:27]} 15. Bg5 {[%emt 0:04:26]} Kg7 {[%emt 0:00:22]} 16. Qc1 {[%emt 0:02:45]} Qc7 {[%emt 0:01:18]} 17. Bd3 {[%emt 0:02:37]} Ne5 {[%emt 0:00:25]} 18. Nxe5 {[%emt 0:08:46]} dxe5 {[%emt 0:00:33]} 19. f4 {[%emt 0:03:01]} exf4 {[%emt 0:01:01]} 20. Bxf4 {[%emt 0:03:06]} Qe7 {[%emt 0:00:56]} 21. e5 {[%emt 0:01:59]} Ng8 {[%emt 0:00:29]} 22. Ne4 {[%emt 0:02:53]} Red8 {[%emt 0:03:15]} 23. Bg5 {[%emt 0:00:58]} Qxe5 {[%emt 0:00:35]} 24. Bxd8 {[%emt 0:01:03]} Rxd8 {[%emt 0:00:13]} 25. Qc3 {[%emt 0:03:41]} Qxc3 {[%emt 0:01:06]} 26. Nxc3 {[%emt 0:00:05]} Bc5+ {[%emt 0:00:26]} 27. Kh1 {[%emt 0:00:25]} Nf6 {[%emt 0:00:22]} 28. Rf3 {[%emt 0:01:26]} Rd7 {[%emt 0:02:20]} 29. Bc2 {[%emt 0:02:17]} Re7 {[%emt 0:00:11]} 30. Na4 {[%emt 0:02:55]} Bc8 {[%emt 0:05:05]} 31. Nxc5 {[%emt 0:01:28]} bxc5 {[%emt 0:00:12]} 32. Rd6 {[%emt 0:00:33]} Ne8 {[%emt 0:00:28]} 33. Rd8 {[%emt 0:03:47]} Be6 {[%emt 0:00:18]} 34. b3 {[%emt 0:00:27]} Nf6 {[%emt 0:00:16]} 35. Re3 {[%emt 0:02:59]} Ra7 {[%emt 0:02:26]} 36. a4 {[%emt 0:02:12]} h5 {[%emt 0:02:02]} 37. Bd1 {[%emt 0:01:28]} Ng8 {[%emt 0:04:30]} 38. Bf3 {[%emt 0:01:37]} Ne7 {[%emt 0:00:19]} 39. Rd6 {[%emt 0:01:39]} Nf5 {[%emt 0:00:12]} 40. Rdxe6 {[%emt 0:01:16]} fxe6 {[%emt 0:00:07]} 41. Rxe6 {[%emt 0:30:09]} Nd4 {[%emt 0:30:06]} 42. Re3 {[%emt 0:00:46]} Rc7 {[%emt 0:01:06]} 43. Bd1 {[%emt 0:03:33]} Kf6 {[%emt 0:00:28]} 44. Kg1 {[%emt 0:01:05]} h4 {[%emt 0:00:10]} 45. g4 {[%emt 0:02:57]} hxg3 46. Rxg3 g5 {[%emt 0:01:09]} 47. Kf2 {[%emt 0:02:22]} Rb7 {[%emt 0:00:06]} 48. Ke1 {[%emt 0:00:34]} Re7+ {[%emt 0:00:35]} 49. Kd2 {[%emt 0:00:18]} Kf5 {[%emt 0:00:46]} 50. Re3 {[%emt 0:02:04]} Rh7 {[%emt 0:00:10]} 51. Bc2+ {[%emt 0:00:55]} Nxc2 {[%emt 0:00:12]} 52. Kxc2 {[%emt 0:00:01]} Kf4 {[%emt 0:00:33]} 53. Rd3 Ke4 54. Rg3 {[%emt 0:02:44]} Kf4 {[%emt 0:00:51]} 55. Rd3 {[%emt 0:00:24]} Rh6 {[%emt 0:01:51]} 56. Kd2 {[%emt 0:00:43]} Re6 {[%emt 0:00:08]} 57. Kd1 {[%emt 0:00:53]} Re3 {[%emt 0:00:05]} 58. Kd2 {[%emt 0:00:33]} Rxd3+ {[%emt 0:00:10]} 59. Kxd3 {[%emt 0:00:24]} Kg3 {[%emt 0:00:03]} 0-1